[Event "Live Chess"]
[Site "Chess.com"]
[Date "2024.06.02"]
[Round "-"]
[White "FlyingChessKestrel13"]
[Black "JanMur7"]
[Result "1-0"]
[WhiteElo "2085"]
[BlackElo "2283"]
[TimeControl "300"]
[EndTime "5:19:31 PDT"]
[Termination "FlyingChessKestrel13 won by resignation"]

1. e4 {[%clk 0:04:56.3]} 1... g6 {[%clk 0:04:57.2]} 2. d4 {[%clk 0:04:54.7]}
2... Bg7 {[%clk 0:04:56.2]} 3. Nc3 {[%clk 0:04:53.7]} 3... c5 {[%clk 0:04:50.4]}
4. Be3 {[%clk 0:04:46.2]} 4... cxd4 {[%clk 0:04:48.9]} 5. Bxd4 {[%clk
0:04:44.8]} 5... Nf6 {[%clk 0:04:48.4]} 6. Nf3 {[%clk 0:04:42]} 6... d6 {[%clk
0:04:47.1]} 7. Bc4 {[%clk 0:04:39.2]} 7... Nc6 {[%clk 0:04:41.8]} 8. Be3 {[%clk
0:04:36.9]} 8... O-O {[%clk 0:04:37.2]} 9. O-O {[%clk 0:04:35.7]} 9... Ng4
{[%clk 0:04:36.2]} 10. Bf4 {[%clk 0:04:27.5]} 10... Nge5 {[%clk 0:04:31.4]} 11.
Nxe5 {[%clk 0:04:25.4]} 11... Nxe5 {[%clk 0:04:29.3]} 12. Bb3 {[%clk 0:04:22]}
12... Bd7 {[%clk 0:04:19.1]} 13. Be3 {[%clk 0:04:17.3]} 13... Bc6 {[%clk
0:04:13.7]} 14. h3 {[%clk 0:04:13.3]} 14... Nd7 {[%clk 0:04:04.5]} 15. Bd4
{[%clk 0:04:09.3]} 15... Nc5 {[%clk 0:03:49.8]} 16. Bxg7 {[%clk 0:04:07.1]}
16... Kxg7 {[%clk 0:03:49.7]} 17. Bd5 {[%clk 0:04:03.7]} 17... Bxd5 {[%clk
0:03:48.1]} 18. exd5 {[%clk 0:04:01.9]} 18... Nd7 {[%clk 0:03:44.2]} 19. Qd4+
{[%clk 0:04:00.4]} 19... Nf6 {[%clk 0:03:43.2]} 20. Rfe1 {[%clk 0:03:58.4]}
20... b6 {[%clk 0:03:36.9]} 21. Ne4 {[%clk 0:03:54.9]} 21... Re8 {[%clk
0:03:31.2]} 22. Nxf6 {[%clk 0:03:52.9]} 22... exf6 {[%clk 0:03:31.1]} 23. c3
{[%clk 0:03:51.6]} 23... Re5 {[%clk 0:03:28.7]} 24. f4 {[%clk 0:03:48.4]} 24...
Rxe1+ {[%clk 0:03:25.4]} 25. Rxe1 {[%clk 0:03:46.6]} 25... Qd7 {[%clk
0:03:24.2]} 26. Kh2 {[%clk 0:03:42.1]} 26... Re8 {[%clk 0:03:21.4]} 27. Rxe8
{[%clk 0:03:39.3]} 27... Qxe8 {[%clk 0:03:21.3]} 28. Qb4 {[%clk 0:03:35.7]}
28... Qe7 {[%clk 0:03:11.8]} 29. a4 {[%clk 0:03:31.1]} 29... h5 {[%clk
0:03:09.8]} 30. a5 {[%clk 0:03:24.9]} 30... Qc7 {[%clk 0:03:00.2]} 31. axb6
{[%clk 0:03:23]} 31... axb6 {[%clk 0:03:00.1]} 32. Qd4 {[%clk 0:03:15.1]} 32...
Qa7 {[%clk 0:02:37.3]} 33. b4 {[%clk 0:03:04]} 33... Qc7 {[%clk 0:02:27.6]} 34.
c4 {[%clk 0:03:00.7]} 34... Qd8 {[%clk 0:02:20.4]} 35. c5 {[%clk 0:02:58.6]}
35... bxc5 {[%clk 0:02:20.3]} 36. bxc5 {[%clk 0:02:57.5]} 36... dxc5 {[%clk
0:02:20.2]} 37. Qxc5 {[%clk 0:02:56.5]} 37... Qf8 {[%clk 0:02:14]} 38. Qxf8+
{[%clk 0:02:37.8]} 38... Kxf8 {[%clk 0:02:13.9]} 39. Kg3 {[%clk 0:02:36.9]}
39... Ke7 {[%clk 0:02:10.4]} 40. Kf3 {[%clk 0:02:36.1]} 40... Kd6 {[%clk
0:02:08.9]} 41. Ke4 {[%clk 0:02:35.3]} 41... Kc5 {[%clk 0:02:07.7]} 42. g4
{[%clk 0:02:31.3]} 42... h4 {[%clk 0:01:57.9]} 43. g5 {[%clk 0:02:29.6]} 43...
Kd6 {[%clk 0:01:22.5]} 44. gxf6 {[%clk 0:02:26.7]} 44... Kc5 {[%clk 0:01:21.3]}
45. Ke5 {[%clk 0:02:24.3]} 45... Kb6 {[%clk 0:01:14.9]} 46. Kd6 {[%clk 0:02:23]}
1-0

[Event "Live Chess"]
[Site "Chess.com"]
[Date "2024.06.02"]
[Round "-"]
[White "RuslanChessN"]
[Black "Queensandpawns"]
[Result "0-1"]
[WhiteElo "1918"]
[BlackElo "2269"]
[TimeControl "300"]
[EndTime "5:19:34 PDT"]
[Termination "Queensandpawns won by resignation"]

1. d4 {[%clk 0:04:53.6]} 1... e5 {[%clk 0:04:59.9]} 2. dxe5 {[%clk 0:04:51.3]}
2... Bc5 {[%clk 0:04:57.3]} 3. Bf4 {[%clk 0:04:43.9]} 3... d6 {[%clk 0:04:56.6]}
4. exd6 {[%clk 0:04:41.1]} 4... Ne7 {[%clk 0:04:56.5]} 5. e3 {[%clk 0:04:23.6]}
5... cxd6 {[%clk 0:04:54.3]} 6. Nf3 {[%clk 0:04:19.9]} 6... Nbc6 {[%clk
0:04:52.2]} 7. Nbd2 {[%clk 0:04:08.7]} 7... O-O {[%clk 0:04:50.1]} 8. Bd3 {[%clk
0:04:06.1]} 8... Bg4 {[%clk 0:04:45.7]} 9. c3 {[%clk 0:04:01.9]} 9... Bh5 {[%clk
0:04:42.3]} 10. Qc2 {[%clk 0:04:00.2]} 10... Bg6 {[%clk 0:04:39.9]} 11. Ne4
{[%clk 0:03:54.4]} 11... Re8 {[%clk 0:04:35]} 12. O-O-O {[%clk 0:03:47.9]} 12...
Qa5 {[%clk 0:04:25.3]} 13. Kb1 {[%clk 0:03:30.2]} 13... d5 {[%clk 0:04:19.5]}
14. Nxc5 {[%clk 0:03:25.7]} 14... Qxc5 {[%clk 0:04:19.4]} 15. Nd4 {[%clk
0:03:14.6]} 15... Rec8 {[%clk 0:04:10.7]} 16. h4 {[%clk 0:02:57.8]} 16... b5
{[%clk 0:04:00.3]} 17. Nxb5 {[%clk 0:02:47.1]} 17... Nb4 {[%clk 0:03:51.7]} 0-1

[Event "Live Chess"]
[Site "Chess.com"]
[Date "2024.06.02"]
[Round "-"]
[White "slava_ukr"]
[Black "friarnator"]
[Result "1-0"]
[WhiteElo "2379"]
[BlackElo "2179"]
[TimeControl "300"]
[EndTime "5:19:36 PDT"]
[Termination "slava_ukr won on time"]

1. e4 {[%clk 0:04:58.1]} 1... c6 {[%clk 0:04:57.8]} 2. d4 {[%clk 0:04:57.1]}
2... d5 {[%clk 0:04:57.7]} 3. e5 {[%clk 0:04:56.6]} 3... Bf5 {[%clk 0:04:54.8]}
4. g4 {[%clk 0:04:55.8]} 4... Be4 {[%clk 0:04:53]} 5. f3 {[%clk 0:04:55]} 5...
Bg6 {[%clk 0:04:52.2]} 6. h4 {[%clk 0:04:54.5]} 6... h5 {[%clk 0:04:48.5]} 7. e6
{[%clk 0:04:53.6]} 7... hxg4 {[%clk 0:04:43.7]} 8. fxg4 {[%clk 0:04:48.9]} 8...
Nf6 {[%clk 0:04:40.8]} 9. exf7+ {[%clk 0:04:37.9]} 9... Bxf7 {[%clk 0:04:38.2]}
10. Nc3 {[%clk 0:04:21.2]} 10... e6 {[%clk 0:04:19.9]} 11. g5 {[%clk 0:04:16]}
11... Nh5 {[%clk 0:04:16.6]} 12. Qf3 {[%clk 0:04:09.9]} 12... Qc7 {[%clk
0:04:08.5]} 13. Be3 {[%clk 0:03:49.9]} 13... Qg3+ {[%clk 0:04:06.1]} 14. Qxg3
{[%clk 0:03:42.6]} 14... Nxg3 {[%clk 0:04:06]} 15. Rh2 {[%clk 0:03:34.7]} 15...
Bd6 {[%clk 0:03:59.2]} 16. Rh3 {[%clk 0:03:14.8]} 16... Nf5 {[%clk 0:03:51.1]}
17. Bf2 {[%clk 0:03:11.1]} 17... Bh5 {[%clk 0:03:26.2]} 18. Be2 {[%clk
0:03:09.9]} 18... Nd7 {[%clk 0:03:21.3]} 19. O-O-O {[%clk 0:03:02.1]} 19...
O-O-O {[%clk 0:03:17.6]} 20. Bxh5 {[%clk 0:02:59]} 20... Rxh5 {[%clk 0:03:17.5]}
21. Nf3 {[%clk 0:02:58.4]} 21... e5 {[%clk 0:03:09.3]} 22. dxe5 {[%clk
0:02:56.3]} 22... Nxe5 {[%clk 0:03:09.2]} 23. Nxe5 {[%clk 0:02:54.4]} 23... Bxe5
{[%clk 0:03:08.9]} 24. Bxa7 {[%clk 0:02:47.4]} 24... Rxh4 {[%clk 0:02:57.3]} 25.
Rxh4 {[%clk 0:02:44.9]} 25... Nxh4 {[%clk 0:02:57.2]} 26. Ne2 {[%clk 0:02:15.2]}
26... Nf3 {[%clk 0:02:40.7]} 27. Be3 {[%clk 0:02:12.4]} 27... d4 {[%clk
0:02:39.1]} 28. Bd2 {[%clk 0:01:57.9]} 28... Rf8 {[%clk 0:02:27.9]} 29. Rf1
{[%clk 0:01:52]} 29... Bd6 {[%clk 0:02:17.3]} 30. Kd1 {[%clk 0:01:48.3]} 30...
Kd7 {[%clk 0:02:13.4]} 31. Ng1 {[%clk 0:01:27.3]} 31... Nxg1 {[%clk 0:01:41.6]}
32. Rxg1 {[%clk 0:01:25.5]} 32... c5 {[%clk 0:01:40.9]} 33. Ke2 {[%clk
0:01:21.7]} 33... Ke6 {[%clk 0:01:39.1]} 34. c3 {[%clk 0:00:58.4]} 34... Kd5
{[%clk 0:01:34]} 35. cxd4 {[%clk 0:00:53.4]} 35... cxd4 {[%clk 0:01:33.5]} 36.
Rg4 {[%clk 0:00:48]} 36... g6 {[%clk 0:01:25.1]} 37. Rh4 {[%clk 0:00:45.4]}
37... b5 {[%clk 0:00:40.8]} 38. Rh6 {[%clk 0:00:41.9]} 38... Rg8 {[%clk
0:00:39.6]} 39. Kd3 {[%clk 0:00:38.9]} 39... Be5 {[%clk 0:00:26]} 40. b3 {[%clk
0:00:35.7]} 40... Ke6 {[%clk 0:00:19.7]} 41. Ke4 {[%clk 0:00:32.6]} 41... Rg7
{[%clk 0:00:15.1]} 42. a4 {[%clk 0:00:28.3]} 42... bxa4 {[%clk 0:00:13.7]} 43.
bxa4 {[%clk 0:00:27.4]} 43... Ra7 {[%clk 0:00:08.7]} 44. a5 {[%clk 0:00:26.5]}
44... Rg7 {[%clk 0:00:05.8]} 45. Rh8 {[%clk 0:00:24.9]} 45... d3 {[%clk
0:00:05.1]} 46. Re8+ {[%clk 0:00:23.1]} 46... Kd6 {[%clk 0:00:04.6]} 47. Rxe5
{[%clk 0:00:22]} 47... Ra7 {[%clk 0:00:02.8]} 48. Rd5+ {[%clk 0:00:20.5]} 48...
Ke6 {[%clk 0:00:01.8]} 49. Rxd3 {[%clk 0:00:19.7]} 1-0

[Event "Live Chess"]
[Site "Chess.com"]
[Date "2024.06.02"]
[Round "-"]
[White "TheSmoulderingMaster"]
[Black "ClassyChameleon"]
[Result "1-0"]
[WhiteElo "1778"]
[BlackElo "1549"]
[TimeControl "300"]
[EndTime "5:19:41 PDT"]
[Termination "TheSmoulderingMaster won by resignation"]

1. e4 {[%clk 0:04:57.1]} 1... e5 {[%clk 0:04:57.4]} 2. Nf3 {[%clk 0:04:55.7]}
2... Nc6 {[%clk 0:04:56.8]} 3. Bb5 {[%clk 0:04:54.6]} 3... a6 {[%clk 0:04:55.7]}
4. Ba4 {[%clk 0:04:53.2]} 4... b5 {[%clk 0:04:55.5]} 5. Bb3 {[%clk 0:04:52.2]}
5... Bb7 {[%clk 0:04:55.2]} 6. O-O {[%clk 0:04:50.6]} 6... Bc5 {[%clk
0:04:54.1]} 7. c3 {[%clk 0:04:50]} 7... Qe7 {[%clk 0:04:51.6]} 8. d4 {[%clk
0:04:48]} 8... exd4 {[%clk 0:04:51.2]} 9. cxd4 {[%clk 0:04:47.3]} 9... Bb6
{[%clk 0:04:48.4]} 10. Nc3 {[%clk 0:04:46]} 10... O-O-O {[%clk 0:04:46.2]} 11.
Nd5 {[%clk 0:04:45]} 11... Qf8 {[%clk 0:04:36.8]} 12. a4 {[%clk 0:04:42]} 12...
bxa4 {[%clk 0:04:30.6]} 13. Bxa4 {[%clk 0:04:40.1]} 13... Ba7 {[%clk 0:04:28.6]}
14. Bf4 {[%clk 0:04:37.1]} 14... d6 {[%clk 0:04:24.6]} 15. Rc1 {[%clk
0:04:31.8]} 15... Nge7 {[%clk 0:04:19.1]} 16. Bg5 {[%clk 0:04:21.6]} 16... f6
{[%clk 0:04:17.3]} 17. Bf4 {[%clk 0:04:18.7]} 17... Nxd5 {[%clk 0:04:16.5]} 18.
exd5 {[%clk 0:04:17.1]} 18... Ne7 {[%clk 0:04:13.2]} 19. Qc2 {[%clk 0:04:12.8]}
19... Nxd5 {[%clk 0:04:11.3]} 20. Bg3 {[%clk 0:04:07.4]} 20... Bb6 {[%clk
0:04:09.3]} 21. Bc6 {[%clk 0:04:04.5]} 21... Qf7 {[%clk 0:03:56.8]} 22. Bxb7+
{[%clk 0:03:59.6]} 22... Kxb7 {[%clk 0:03:56]} 23. Qc6+ {[%clk 0:03:57]} 23...
Kb8 {[%clk 0:03:53.2]} 24. Ra1 {[%clk 0:03:54.6]} 24... a5 {[%clk 0:03:49.2]}
25. Nd2 {[%clk 0:03:49.1]} 25... Rhe8 {[%clk 0:03:46.7]} 26. Nc4 {[%clk
0:03:47.1]} 26... Re2 {[%clk 0:03:35.2]} 27. Qb5 {[%clk 0:03:35.2]} 27... Kc8
{[%clk 0:02:42]} 28. Nxb6+ {[%clk 0:03:30.5]} 28... Nxb6 {[%clk 0:02:40.3]} 29.
Qxe2 {[%clk 0:03:29.4]} 29... Qb3 {[%clk 0:02:34.6]} 30. Qa6+ {[%clk 0:03:25.2]}
30... Kd7 {[%clk 0:02:33.4]} 31. Qxa5 {[%clk 0:03:22.9]} 31... Qxb2 {[%clk
0:02:32.1]} 32. Rac1 {[%clk 0:03:17.3]} 32... Qxd4 {[%clk 0:02:27]} 33. Qb5+
{[%clk 0:03:14.3]} 33... Ke7 {[%clk 0:02:23.9]} 34. Rfe1+ {[%clk 0:03:11.5]}
34... Kf7 {[%clk 0:02:16.6]} 35. Rxc7+ {[%clk 0:03:09.5]} 35... Kg8 {[%clk
0:02:10]} 36. h3 {[%clk 0:02:58.9]} 36... Na8 {[%clk 0:01:50.1]} 37. Rb7 {[%clk
0:02:46.7]} 37... h6 {[%clk 0:01:45.9]} 38. Ree7 {[%clk 0:02:44.3]} 38... f5
{[%clk 0:01:38.1]} 39. Qxf5 {[%clk 0:02:37.7]} 39... Qd1+ {[%clk 0:01:30]} 40.
Kh2 {[%clk 0:02:36]} 40... Rf8 {[%clk 0:01:27.4]} 1-0

[Event "Live Chess"]
[Site "Chess.com"]
[Date "2024.06.02"]
[Round "-"]
[White "JanMur7"]
[Black "TheSmoulderingMaster"]
[Result "1-0"]
[WhiteElo "2284"]
[BlackElo "1777"]
[TimeControl "300"]
[EndTime "5:20:35 PDT"]
[Termination "JanMur7 won by resignation"]

1. e4 {[%clk 0:04:58.9]} 1... c5 {[%clk 0:04:58]} 2. Nf3 {[%clk 0:04:54.7]} 2...
d6 {[%clk 0:04:56.9]} 3. c3 {[%clk 0:04:53.7]} 3... Nc6 {[%clk 0:04:55.2]} 4.
Be2 {[%clk 0:04:52.2]} 4... Nf6 {[%clk 0:04:53.9]} 5. d4 {[%clk 0:04:51.6]} 5...
cxd4 {[%clk 0:04:52.2]} 6. cxd4 {[%clk 0:04:51.5]} 6... g6 {[%clk 0:04:51.1]} 7.
O-O {[%clk 0:04:49]} 7... Nxe4 {[%clk 0:04:49.7]} 8. d5 {[%clk 0:04:47.4]} 8...
Ne5 {[%clk 0:04:45]} 9. Qa4+ {[%clk 0:04:46.1]} 9... Bd7 {[%clk 0:04:39.9]} 10.
Qxe4 {[%clk 0:04:44.5]} 10... Bg7 {[%clk 0:04:38.6]} 11. Nxe5 {[%clk 0:04:42.3]}
1-0

[Event "Live Chess"]
[Site "Chess.com"]
[Date "2024.06.02"]
[Round "-"]
[White "seasidecastle27"]
[Black "stevochess11"]
[Result "1-0"]
[WhiteElo "1943"]
[BlackElo "1704"]
[TimeControl "300"]
[EndTime "5:20:47 PDT"]
[Termination "seasidecastle27 won by resignation"]

1. d4 {[%clk 0:04:56.8]} 1... Nf6 {[%clk 0:04:58.9]} 2. Nf3 {[%clk 0:04:56]}
2... g6 {[%clk 0:04:57.5]} 3. Bg5 {[%clk 0:04:54.1]} 3... Ne4 {[%clk 0:04:54.8]}
4. Bf4 {[%clk 0:04:51.1]} 4... Bg7 {[%clk 0:04:53.8]} 5. Nbd2 {[%clk 0:04:49.6]}
5... d5 {[%clk 0:04:49.8]} 6. e3 {[%clk 0:04:47.9]} 6... c5 {[%clk 0:04:48.2]}
7. c3 {[%clk 0:04:46.1]} 7... Nc6 {[%clk 0:04:46.3]} 8. Bd3 {[%clk 0:04:44.5]}
8... Nxd2 {[%clk 0:04:31.5]} 9. Qxd2 {[%clk 0:04:43.1]} 9... cxd4 {[%clk
0:04:28]} 10. exd4 {[%clk 0:04:41.4]} 10... O-O {[%clk 0:04:21.1]} 11. Bh6
{[%clk 0:04:35.8]} 11... Bg4 {[%clk 0:04:14.2]} 12. h4 {[%clk 0:04:28.4]} 12...
Bxf3 {[%clk 0:04:08.1]} 13. gxf3 {[%clk 0:04:26.3]} 13... e5 {[%clk 0:04:05.1]}
14. h5 {[%clk 0:04:18.1]} 14... Qf6 {[%clk 0:04:00.2]} 15. Bxg7 {[%clk
0:04:11.8]} 15... Kxg7 {[%clk 0:03:57.1]} 16. hxg6 {[%clk 0:04:03.4]} 16... Qxg6
{[%clk 0:03:51.8]} 17. Bxg6 {[%clk 0:03:59.7]} 1-0

[Event "Live Chess"]
[Site "Chess.com"]
[Date "2024.06.02"]
[Round "-"]
[White "halfberg"]
[Black "TJ-W"]
[Result "1-0"]
[WhiteElo "1901"]
[BlackElo "1574"]
[TimeControl "300"]
[EndTime "5:20:48 PDT"]
[Termination "halfberg won by checkmate"]

1. e4 {[%clk 0:04:54.4]} 1... c5 {[%clk 0:04:57.7]} 2. Nf3 {[%clk 0:04:52.7]}
2... Nc6 {[%clk 0:04:55]} 3. d4 {[%clk 0:04:50.9]} 3... cxd4 {[%clk 0:04:54.6]}
4. Nxd4 {[%clk 0:04:50.2]} 4... g6 {[%clk 0:04:51.1]} 5. Nxc6 {[%clk 0:04:47.3]}
5... bxc6 {[%clk 0:04:49.5]} 6. Qd4 {[%clk 0:04:46.7]} 6... Nf6 {[%clk
0:04:29.2]} 7. e5 {[%clk 0:04:45.8]} 7... Qa5+ {[%clk 0:04:12.2]} 8. Bd2 {[%clk
0:04:34.8]} 8... Qd5 {[%clk 0:04:10.7]} 9. Qc3 {[%clk 0:04:20.8]} 9... Ne4
{[%clk 0:04:05.7]} 10. Qf3 {[%clk 0:03:46.9]} 10... Qxe5 {[%clk 0:03:42.9]} 11.
Be2 {[%clk 0:03:45.6]} 11... Nxd2 {[%clk 0:03:34.6]} 12. Nxd2 {[%clk 0:03:43.4]}
12... Qxb2 {[%clk 0:03:28.3]} 13. O-O {[%clk 0:03:38.1]} 13... Bg7 {[%clk
0:03:23.1]} 14. Rab1 {[%clk 0:03:32.8]} 14... Qxc2 {[%clk 0:03:09.8]} 15. Ne4
{[%clk 0:03:25.5]} 15... O-O {[%clk 0:02:58]} 16. Bd3 {[%clk 0:03:15.2]} 16...
Qxa2 {[%clk 0:02:52.4]} 17. Rfe1 {[%clk 0:02:59.3]} 17... Qd5 {[%clk 0:02:45.4]}
18. Qg3 {[%clk 0:02:31.6]} 18... Be5 {[%clk 0:02:33]} 19. f4 {[%clk 0:02:28.8]}
19... Bd4+ {[%clk 0:02:25.2]} 20. Kh1 {[%clk 0:02:26.8]} 20... Bf2 {[%clk
0:02:13.2]} 21. Nxf2 {[%clk 0:02:23.7]} 21... f5 {[%clk 0:02:09.8]} 22. Rxe7
{[%clk 0:02:15.7]} 22... Qa2 {[%clk 0:01:53.2]} 23. Rbe1 {[%clk 0:02:04.5]}
23... a5 {[%clk 0:01:41.2]} 24. Qh4 {[%clk 0:01:59.2]} 24... h5 {[%clk
0:01:20.1]} 25. Qg5 {[%clk 0:01:49.6]} 25... Rf7 {[%clk 0:01:10.7]} 26. Qxg6+
{[%clk 0:01:46]} 26... Kf8 {[%clk 0:01:07.5]} 27. Re8# {[%clk 0:01:42.8]} 1-0

[Event "Live Chess"]
[Site "Chess.com"]
[Date "2024.06.02"]
[Round "-"]
[White "AlanBstard10"]
[Black "Ninifu"]
[Result "0-1"]
[WhiteElo "1235"]
[BlackElo "2010"]
[TimeControl "300"]
[EndTime "5:20:51 PDT"]
[Termination "Ninifu won by resignation"]

1. Nf3 {[%clk 0:04:55.2]} 1... Nf6 {[%clk 0:04:57.6]} 2. c4 {[%clk 0:04:54]}
2... g6 {[%clk 0:04:55]} 3. b3 {[%clk 0:04:52]} 3... Bg7 {[%clk 0:04:53.8]} 4.
Bb2 {[%clk 0:04:50.1]} 4... O-O {[%clk 0:04:53.3]} 5. Nc3 {[%clk 0:04:49.1]}
5... d6 {[%clk 0:04:52.6]} 6. g3 {[%clk 0:04:48.2]} 6... e5 {[%clk 0:04:50.8]}
7. Bg2 {[%clk 0:04:47.4]} 7... Nbd7 {[%clk 0:04:50.2]} 8. O-O {[%clk 0:04:46]}
8... c6 {[%clk 0:04:48.7]} 9. d3 {[%clk 0:04:45.1]} 9... Re8 {[%clk 0:04:48.1]}
10. Re1 {[%clk 0:04:43.9]} 10... d5 {[%clk 0:04:40.3]} 11. cxd5 {[%clk
0:04:42.5]} 11... cxd5 {[%clk 0:04:39.6]} 12. Rb1 {[%clk 0:04:37.5]} 12... d4
{[%clk 0:04:26.5]} 13. Ne4 {[%clk 0:04:34.9]} 13... Nxe4 {[%clk 0:04:24.3]} 14.
dxe4 {[%clk 0:04:34.6]} 14... Nc5 {[%clk 0:04:18.7]} 15. h4 {[%clk 0:04:21.6]}
15... Nxe4 {[%clk 0:04:13.8]} 16. Nd2 {[%clk 0:04:11.1]} 16... Nxd2 {[%clk
0:03:52.6]} 17. Qxd2 {[%clk 0:04:10]} 17... Bf5 {[%clk 0:03:51.3]} 18. Rbc1
{[%clk 0:04:05.4]} 18... Rc8 {[%clk 0:03:47.2]} 19. Rxc8 {[%clk 0:04:02.6]}
19... Qxc8 {[%clk 0:03:45.8]} 20. Rc1 {[%clk 0:04:00.9]} 20... Qd7 {[%clk
0:03:45.2]} 21. Bf3 {[%clk 0:03:53.5]} 21... Rc8 {[%clk 0:03:43.2]} 22. Rxc8+
{[%clk 0:03:51.4]} 22... Qxc8 {[%clk 0:03:42.5]} 23. Kh2 {[%clk 0:03:38.5]}
23... Qc2 {[%clk 0:03:41]} 24. Qxc2 {[%clk 0:03:36.6]} 24... Bxc2 {[%clk
0:03:39.2]} 25. Bxb7 {[%clk 0:03:31.8]} 25... e4 {[%clk 0:03:31.3]} 26. Bc1
{[%clk 0:03:12.7]} 26... d3 {[%clk 0:03:13.9]} 27. exd3 {[%clk 0:03:11.4]} 27...
exd3 {[%clk 0:03:13.4]} 28. Bf3 {[%clk 0:02:58.4]} 28... Bc3 {[%clk 0:03:09.5]}
29. Kg2 {[%clk 0:02:52.4]} 29... d2 {[%clk 0:03:07.7]} 30. Ba3 {[%clk
0:02:46.7]} 30... d1=Q {[%clk 0:03:04.2]} 31. Bxd1 {[%clk 0:02:45.7]} 31... Bxd1
{[%clk 0:03:03.4]} 32. Kf1 {[%clk 0:02:43]} 32... Bc2 {[%clk 0:03:02.4]} 33. Ke2
{[%clk 0:02:41.4]} 33... Bb1 {[%clk 0:03:01.7]} 34. Bc5 {[%clk 0:02:35.3]} 34...
Bxa2 {[%clk 0:02:54.4]} 35. Bxa7 {[%clk 0:02:34.4]} 35... Bxb3 {[%clk
0:02:53.7]} 36. Kd3 {[%clk 0:02:33.6]} 36... Bf6 {[%clk 0:02:49.4]} 37. Be3
{[%clk 0:02:28.3]} 37... Kf8 {[%clk 0:02:46.3]} 38. Ke4 {[%clk 0:02:26.5]} 38...
Ke7 {[%clk 0:02:45.5]} 39. Bc5+ {[%clk 0:02:23.8]} 39... Ke6 {[%clk 0:02:42.6]}
40. Kd3 {[%clk 0:02:18.2]} 40... h5 {[%clk 0:02:40.7]} 41. Ke4 {[%clk
0:02:15.7]} 41... Bd5+ {[%clk 0:02:36.6]} 42. Ke3 {[%clk 0:02:13.3]} 42... Kf5
{[%clk 0:02:34.7]} 43. Bd6 {[%clk 0:02:07.7]} 43... Kg4 {[%clk 0:02:33.2]} 44.
Bf4 {[%clk 0:02:02.2]} 44... Bd8 {[%clk 0:02:30.9]} 45. Bd6 {[%clk 0:01:59.5]}
45... Bb6+ {[%clk 0:02:29.6]} 46. Ke2 {[%clk 0:01:57.6]} 46... Bc4+ {[%clk
0:02:28.2]} 47. Ke1 {[%clk 0:01:56.1]} 47... Kf3 {[%clk 0:02:26.7]} 48. Bf4
{[%clk 0:01:46.6]} 48... Bxf2+ {[%clk 0:02:24.9]} 49. Kd2 {[%clk 0:01:44]} 49...
Bxg3 {[%clk 0:02:24.2]} 50. Bxg3 {[%clk 0:01:43.2]} 50... Kxg3 {[%clk
0:02:23.2]} 0-1

[Event "Live Chess"]
[Site "Chess.com"]
[Date "2024.06.02"]
[Round "-"]
[White "Duke_of_Bebington"]
[Black "peteopeteo"]
[Result "0-1"]
[WhiteElo "1617"]
[BlackElo "1557"]
[TimeControl "300"]
[EndTime "5:20:58 PDT"]
[Termination "peteopeteo won by resignation"]

1. e4 {[%clk 0:04:58]} 1... c6 {[%clk 0:04:59.4]} 2. d4 {[%clk 0:04:56.6]} 2...
d5 {[%clk 0:04:59.3]} 3. e5 {[%clk 0:04:55.7]} 3... Bf5 {[%clk 0:04:58.6]} 4. g4
{[%clk 0:04:54.5]} 4... Bg6 {[%clk 0:04:55.8]} 5. h4 {[%clk 0:04:54]} 5... h5
{[%clk 0:04:54.9]} 6. Ne2 {[%clk 0:04:46.1]} 6... e6 {[%clk 0:04:47.5]} 7. Ng3
{[%clk 0:04:42.1]} 7... hxg4 {[%clk 0:04:32.2]} 8. Bd3 {[%clk 0:04:35.7]} 8...
Rxh4 {[%clk 0:04:17]} 9. Bxg6 {[%clk 0:04:31.3]} 9... Rxh1+ {[%clk 0:04:15.4]}
10. Nxh1 {[%clk 0:04:25.8]} 10... fxg6 {[%clk 0:04:09.6]} 11. Qxg4 {[%clk
0:04:23]} 11... Ne7 {[%clk 0:03:54.1]} 12. Bg5 {[%clk 0:04:11.8]} 12... Qa5+
{[%clk 0:03:44.8]} 13. c3 {[%clk 0:04:09.7]} 13... c5 {[%clk 0:03:39.4]} 14.
Bxe7 {[%clk 0:04:06.9]} 14... Bxe7 {[%clk 0:03:35.3]} 15. Qxg6+ {[%clk
0:04:05.5]} 15... Kd7 {[%clk 0:03:30.1]} 16. Na3 {[%clk 0:03:44.4]} 16... cxd4
{[%clk 0:03:26.5]} 17. O-O-O {[%clk 0:03:42.4]} 17... dxc3 {[%clk 0:03:21.9]}
18. Qc2 {[%clk 0:03:31.4]} 18... Bxa3 {[%clk 0:03:11.9]} 19. bxa3 {[%clk
0:03:29.5]} 19... Qxa3+ {[%clk 0:03:10.4]} 20. Kb1 {[%clk 0:03:29.2]} 20... Qb4+
{[%clk 0:03:06.6]} 21. Qb3 {[%clk 0:03:27.5]} 21... Qxb3+ {[%clk 0:03:04.3]} 22.
axb3 {[%clk 0:03:27.4]} 22... Nc6 {[%clk 0:03:03.4]} 23. Kc2 {[%clk 0:03:25.6]}
23... d4 {[%clk 0:03:01.9]} 24. Ng3 {[%clk 0:03:22.5]} 24... Rf8 {[%clk
0:02:57.1]} 25. Ne4 {[%clk 0:03:18.3]} 25... b6 {[%clk 0:02:52.9]} 26. Re1
{[%clk 0:03:06.5]} 26... Nb4+ {[%clk 0:02:30.6]} 27. Kb1 {[%clk 0:02:59.6]}
27... c2+ {[%clk 0:02:27]} 28. Kb2 {[%clk 0:02:58.7]} 28... Nd3+ {[%clk
0:02:25.5]} 29. Kxc2 {[%clk 0:02:56.3]} 29... Nxe1+ {[%clk 0:02:24.7]} 0-1

[Event "Live Chess"]
[Site "Chess.com"]
[Date "2024.06.02"]
[Round "-"]
[White "TheRedDrag"]
[Black "jimwad"]
[Result "1-0"]
[WhiteElo "2172"]
[BlackElo "1298"]
[TimeControl "300"]
[EndTime "5:20:58 PDT"]
[Termination "TheRedDrag won by checkmate"]

1. e4 {[%clk 0:04:58.1]} 1... e5 {[%clk 0:04:59.3]} 2. Nf3 {[%clk 0:04:56.9]}
2... Nc6 {[%clk 0:04:58.4]} 3. c3 {[%clk 0:04:56.3]} 3... Nf6 {[%clk 0:04:57.5]}
4. d4 {[%clk 0:04:55.2]} 4... exd4 {[%clk 0:04:56.3]} 5. e5 {[%clk 0:04:54.3]}
5... Ng4 {[%clk 0:04:54.5]} 6. cxd4 {[%clk 0:04:52.6]} 6... Bb4+ {[%clk
0:04:51.1]} 7. Nc3 {[%clk 0:04:51.2]} 7... Bxc3+ {[%clk 0:04:47.8]} 8. bxc3
{[%clk 0:04:50]} 8... d6 {[%clk 0:04:46.4]} 9. h3 {[%clk 0:04:48.3]} 9... Nh6
{[%clk 0:04:40.7]} 10. Bb5 {[%clk 0:04:45]} 10... Nf5 {[%clk 0:04:30.7]} 11. d5
{[%clk 0:04:41.4]} 11... a6 {[%clk 0:04:27.4]} 12. Qa4 {[%clk 0:04:38.4]} 12...
axb5 {[%clk 0:04:11.6]} 13. Qxa8 {[%clk 0:04:36.1]} 13... Nxe5 {[%clk 0:04:10]}
14. Nxe5 {[%clk 0:04:33.1]} 14... dxe5 {[%clk 0:04:07.7]} 15. O-O {[%clk
0:04:31.1]} 15... O-O {[%clk 0:04:05.6]} 16. Ba3 {[%clk 0:04:26.8]} 16... Re8
{[%clk 0:04:03.6]} 17. Rad1 {[%clk 0:04:26]} 17... Qg5 {[%clk 0:03:26.8]} 18.
Rd3 {[%clk 0:04:09]} 18... e4 {[%clk 0:03:02.3]} 19. Rdd1 {[%clk 0:03:58.9]}
19... Nh4 {[%clk 0:03:00.6]} 20. g3 {[%clk 0:03:55.8]} 20... Nf3+ {[%clk
0:02:58.7]} 21. Kh1 {[%clk 0:03:52.7]} 21... Bxh3 {[%clk 0:02:57.1]} 22. Qxe8#
{[%clk 0:03:51.4]} 1-0